fUSD/lending_fUSD_20241230
["ID","MTS","AMOUNT","RATE_DAILY","PERIOD"]
[347179796,1735552251619,-2269.54,0.00013698,2]
[347179797,1735552251628,-4762.33,0.00013698,2]
[347179798,1735552251638,-500.0,0.00013698,2]
[347179799,1735552251649,-2740.88,0.00013698,2]
[347179800,1735552251658,-2440.94,0.00013698,2]
[347179801,1735552251668,-1799.49,0.00013698,2]
[347179802,1735552251678,-517.17,0.00013698,2]
[347179803,1735552251688,-537.34619019,0.00013698,2]
[347179804,1735552251697,-2860.3,0.00013698,2]
[347179805,1735552251707,-1852.02,0.00013698,2]
[347179806,1735552251716,-500.0,0.00013698,2]
[347179807,1735552251725,-1288.76,0.00013698,2]
[347179808,1735552251734,-500.0,0.00013698,2]
[347179809,1735552251744,-500.0,0.00013698,2]
[347179810,1735552251753,-500.0,0.00013698,2]
[347179811,1735552251762,-500.0,0.00013698,2]
[347179812,1735552251771,-1285.75,0.00013698,2]
[347179813,1735552251781,-3532.63,0.00013698,2]
[347179814,1735552251790,-482.638734,0.00013698,2]
[347179815,1735552251800,-1494.07,0.00013698,2]
[347179816,1735552251809,-516.13,0.00013698,2]
[347179817,1735552251819,-500.0,0.00013698,2]
[347179818,1735552251829,-465.520485,0.00013698,2]
[347179819,1735552251838,-320.50804094,0.00013698,2]
[347179820,1735552251847,-3736.29,0.00013698,2]
[347179821,1735552251856,-500.0,0.00013698,2]
[347179822,1735552251866,-2998.68,0.00013698,2]
[347179823,1735552251875,-1327.15,0.00013698,2]
[347179824,1735552251884,-1448.12,0.00013698,2]
[347179825,1735552251897,-500.0,0.00013698,2]
[347179826,1735552251907,-800.0,0.00013699,2]
[347179827,1735552251916,-800.0,0.00013699,2]
[347179828,1735552251926,-4000.0,0.00013699,2]
[347179829,1735552251936,-800.0,0.00013699,2]
[347179830,1735552251945,-800.0,0.00013699,2]
[347179831,1735552251955,-800.0,0.00013699,2]
[347179832,1735552251964,-800.0,0.00013699,2]
[347179833,1735552251974,-800.0,0.00013699,2]
[347179834,1735552251983,-34843.06,0.00013699,2]
[347179835,1735552251994,-800.0,0.00013699,2]
[347179836,1735552252003,-9810.58,0.00013699,2]
[347179837,1735552252013,-800.0,0.00013699,2]
[347179838,1735552252022,-312.29,0.00013699,2]
[347179839,1735552252183,-800.0,0.00013699,2]
[347179840,1735552252203,-10000.26,0.00013699,2]
[347179841,1735552252213,-800.0,0.00013699,2]
[347179842,1735552252223,-800.0,0.00013699,2]
[347179843,1735552252232,-4306.08,0.00013699,2]
[347179844,1735552252242,-800.0,0.00013699,2]
[347179845,1735552252251,-41863.76,0.00013699,2]
[347179846,1735552252261,-500.0,0.00013699,2]
[347179847,1735552252271,-800.0,0.00013699,2]
[347179848,1735552252285,-800.0,0.00013699,2]
[347179849,1735552252295,-800.0,0.00013699,2]
[347179850,1735552252304,-800.0,0.00013699,2]
[347179851,1735552252314,-153.701957,0.00013699,2]
[347179852,1735552252325,-800.0,0.00013699,2]
[347179853,1735552252335,-500.0,0.00013699,2]
[347179854,1735552252345,-300.94213286,0.00013699,2]
[347179855,1735552252355,-500.0,0.00013699,2]
[347179856,1735552252364,-323.26745339,0.00013699,2]
[347179857,1735552252373,-315.08308174,0.00013699,2]
[347179858,1735552252383,-500.0,0.00013699,2]
[347179859,1735552252393,-500.0,0.00013699,2]
[347179860,1735552252403,-530.15179182,0.00013699,2]
[347179861,1735552252412,-500.0,0.00013699,2]
[347179862,1735552252421,-159.89084503,0.00013699,2]
[347179863,1735552252431,-505.14905039,0.00013699,2]
[347179864,1735552252441,-515.83053344,0.00013699,2]
[347179865,1735552252451,-500.0,0.00013699,2]
[347179866,1735552252461,-516.89945146,0.00013699,2]
[347179867,1735552252470,-206.46340248,0.00013699,2]
[347179868,1735552252479,-500.0,0.00013699,2]
[347179869,1735552252489,-500.0,0.00013699,2]
[347179870,1735552252498,-500.0,0.00013699,2]
[347179871,1735552252508,-500.0,0.00013699,2]
[347179872,1735552252517,-500.0,0.00013699,2]
[347179873,1735552252527,-550.0626304,0.00013699,2]
[347179874,1735552252536,-500.0,0.00013699,2]
[347179875,1735552252546,-2400.0,0.000137,5]
[347179876,1735552252555,-1767.41,0.000137,2]
[347179877,1735552252565,-1767.41,0.000137,2]
[347179878,1735552252574,-1767.41,0.000137,2]
[347179879,1735552252584,-1767.41,0.000137,2]
[347179880,1735552252593,-1767.41,0.000137,2]
[347179881,1735552252602,-1767.41,0.000137,2]
[347179882,1735552252612,-1767.41,0.000137,2]
[347179883,1735552252622,-1767.41,0.000137,2]
[347179884,1735552252631,-1767.41,0.000137,2]
[347179885,1735552252640,-1767.41,0.000137,2]
[347179886,1735552252652,-1415.04,0.000137,2]
[347179887,1735552252662,-1415.04,0.000137,2]
[347179888,1735552252672,-1415.04,0.000137,2]
[347179889,1735552252681,-1415.04,0.000137,2]
[347179890,1735552252691,-1415.04,0.000137,2]
[347179891,1735552252700,-456.0,0.0001371,2]
[347179892,1735552252709,-1004.83,0.00013726,2]
[347179893,1735552252719,-1004.83,0.00013753,2]
[347179894,1735552252728,-659.924,0.0001378,2]
[347179895,1735552252738,-1004.83,0.0001378,2]
[347179896,1735552252747,-2100.0,0.00013795,2]
[347179897,1735552252757,-800.0,0.00013795,2]
[347179898,1735552252767,-3088.0,0.000138,5]
[347179899,1735552252777,-1004.83,0.00013808,2]
[347179900,1735552252786,-637.0,0.00013821,2]
[347179901,1735552252796,-1004.83,0.00013835,2]
[347179902,1735552252806,-1004.83,0.00013863,2]
[347179903,1735552252815,-456.0,0.0001388,2]
[347179904,1735552252825,-1004.83,0.0001389,2]
[347179905,1735552252835,-150.0,0.000139,2]
[347179906,1735552252845,-1004.83,0.00013917,2]
[347179907,1735552252854,-1004.83,0.00013945,2]
[347179908,1735552252863,-150.0,0.00013945,2]
[347179909,1735552252874,-637.0,0.00013958,2]
[347179910,1735552252883,-1000.0,0.00013969,2]
[347179911,1735552252895,-666.0,0.00013971,2]
[347179912,1735552252905,-160.22029449,0.00013971,2]
[347179913,1735552252915,-666.0,0.00013971,2]
[347179914,1735552252925,-666.0,0.00013971,2]
[347179915,1735552252934,-500.0,0.00013972,2]
[347179916,1735552252944,-187.33837162,0.00013972,2]
[347179917,1735552252953,-500.0,0.00013972,2]
[347179918,1735552252963,-500.0,0.00013972,2]
[347179919,1735552252973,-500.0,0.00013972,2]
[347179920,1735552252982,-500.0,0.00013972,2]
[347179921,1735552252992,-591.93,0.00013972,2]
[347179922,1735552253002,-500.0,0.00013972,2]
[347179923,1735552253011,-500.0,0.00013972,2]
[347179924,1735552253020,-500.0,0.00013972,2]
[347179925,1735552253030,-991.65,0.00013972,2]
[347179926,1735552253040,-500.0,0.00013972,2]
[347179927,1735552253049,-500.0,0.00013972,2]
[347179928,1735552253058,-500.0,0.00013972,2]
[347179929,1735552253067,-500.0,0.00013972,2]
[347179930,1735552253077,-1064.57,0.00013972,2]
[347179931,1735552253087,-500.0,0.00013972,2]
[347179932,1735552253097,-500.0,0.00013972,2]
[347179933,1735552253107,-500.0,0.00013972,2]
[347179934,1735552253116,-500.0,0.00013972,2]
[347179935,1735552253126,-247.69989627,0.00013972,2]
[347179936,1735552253135,-500.0,0.00013972,2]
[347179937,1735552253145,-500.0,0.00013972,2]
[347179938,1735552253154,-560.69225366,0.00013972,2]
[347179939,1735552253164,-500.0,0.00013972,2]
[347179940,1735552253174,-1040.22,0.00013972,2]
[347179941,1735552253184,-504.06505607,0.00013972,2]
[347179942,1735552253193,-500.0,0.00013972,2]
[347179943,1735552253203,-500.0,0.00013972,2]
[347179944,1735552253213,-503.66732174,0.00013972,2]
[347179945,1735552253222,-942.82,0.00013972,2]
[347179946,1735552253231,-500.0,0.00013972,2]
[347179947,1735552253241,-646.9,0.00013972,2]
[347179948,1735552253251,-500.0,0.00013972,2]
[347179949,1735552253261,-523.3,0.00013972,2]
[347179950,1735552253270,-500.0,0.00013972,2]
[347179951,1735552253280,-740.16,0.00013972,2]
[347179952,1735552253289,-500.0,0.00013972,2]
[347179953,1735552253298,-383.41650932,0.00013972,2]
[347179954,1735552253309,-526.9,0.00013972,2]
[347179955,1735552253318,-500.0,0.00013972,2]
[347179956,1735552253328,-500.0,0.00013972,2]
[347179957,1735552253338,-500.0,0.00013972,2]
[347179958,1735552253347,-500.0,0.00013972,2]
[347179959,1735552253357,-500.0,0.00013972,2]
[347179960,1735552253366,-500.0,0.00013972,2]
[347179961,1735552253375,-500.0,0.00013972,2]
[347179962,1735552253385,-500.0,0.00013972,2]
[347179963,1735552253395,-500.0,0.00013972,2]
[347179964,1735552253405,-500.0,0.00013972,2]
[347179965,1735552253415,-500.0,0.00013972,2]
[347179966,1735552253424,-500.0,0.00013972,2]
[347179967,1735552253434,-500.0,0.00013972,2]
[347179968,1735552253443,-151.0,0.00013972,2]
[347179969,1735552253453,-500.0,0.00013972,2]
[347179970,1735552253462,-500.0,0.00013972,2]
[347179971,1735552253471,-500.0,0.00013972,2]
[347179972,1735552253481,-500.0,0.00013972,2]
[347179973,1735552253490,-500.0,0.00013972,2]
[347179974,1735552253500,-500.0,0.00013972,2]
[347179975,1735552253510,-500.0,0.00013972,2]
[347179976,1735552253519,-505.48610405,0.00013972,2]
[347179977,1735552253528,-500.0,0.00013972,2]
[347179978,1735552253537,-241.90893538,0.00013972,2]
[347179979,1735552253547,-500.0,0.00013972,2]
[347179980,1735552253556,-478.01525083,0.00013972,2]
[347179981,1735552253565,-1438.86,0.00013972,2]
[347179982,1735552253574,-500.0,0.00013972,2]
[347179983,1735552253584,-505.21161282,0.00013972,2]
[347179984,1735552253593,-547.19,0.00013972,2]
[347179985,1735552253602,-500.0,0.00013972,2]
[347179986,1735552253611,-500.0,0.00013972,2]
[347179987,1735552253620,-786.84,0.00013972,2]
[347179988,1735552253629,-500.0,0.00013972,2]
[347179989,1735552253638,-500.0,0.00013972,2]
[347179990,1735552253648,-950.0,0.00013972,2]
[347179991,1735552253657,-500.0,0.00013972,2]
[347179992,1735552253666,-500.0,0.00013972,2]
[347179993,1735552253675,-500.0,0.00013972,2]
[347179994,1735552253684,-500.0,0.00013972,2]
[347179995,1735552253693,-716.13,0.00013972,2]
[347179996,1735552253702,-546.66146008,0.00013972,2]
[347179997,1735552253711,-500.0,0.00013972,2]
[347179998,1735552253720,-532.17,0.00013972,2]
[347179999,1735552253730,-500.0,0.00013972,2]
[347180000,1735552253739,-500.0,0.00013972,2]
[347180001,1735552253748,-1053.39,0.00013972,2]
[347180002,1735552253757,-505.32096942,0.00013972,2]
[347180003,1735552253767,-500.0,0.00013972,2]
[347180004,1735552253776,-500.0,0.00013972,2]
[347180005,1735552253786,-500.0,0.00013972,2]
[347180006,1735552253795,-506.1805925,0.00013972,2]
[347180007,1735552253805,-500.0,0.00013972,2]
[347180008,1735552253814,-525.76717917,0.00013972,2]
[347180009,1735552253823,-574.17,0.00013972,2]
[347180010,1735552253833,-500.0,0.00013972,2]
[347180011,1735552253842,-539.50370084,0.00013972,2]
[347180012,1735552253851,-505.52406481,0.00013972,2]
[347180013,1735552253860,-500.0,0.00013972,2]
[347180014,1735552253869,-500.0,0.00013972,2]
[347180015,1735552253878,-548.73,0.00013972,2]
[347180016,1735552253887,-500.0,0.00013972,2]
[347180017,1735552253897,-500.0,0.00013972,2]
[347180018,1735552253907,-500.0,0.00013972,2]
[347180019,1735552253917,-475.61952527,0.00013972,2]
[347180020,1735552253926,-500.0,0.00013972,2]
[347180021,1735552253936,-652.93,0.00013972,2]
[347180022,1735552253945,-500.0,0.00013972,2]
[347180023,1735552253955,-500.0,0.00013972,2]
[347180024,1735552253964,-500.0,0.00013972,2]
[347180025,1735552253973,-500.0,0.00013972,2]
[347180026,1735552253983,-500.0,0.00013972,2]
[347180027,1735552253992,-500.0,0.00013972,2]
[347180028,1735552254002,-500.0,0.00013972,2]
[347180029,1735552254011,-500.0,0.00013972,2]
[347180030,1735552254020,-500.0,0.00013972,2]
[347180031,1735552254029,-510.41735017,0.00013972,2]
[347180032,1735552254039,-500.0,0.00013972,2]
[347180033,1735552254048,-504.86090933,0.00013972,2]
[347180034,1735552254057,-500.0,0.00013972,2]
[347180035,1735552254066,-500.0,0.00013972,2]
[347180036,1735552254076,-854.51,0.00013972,2]
[347180037,1735552254085,-500.0,0.00013972,2]
[347180038,1735552254095,-500.0,0.00013972,2]
[347180039,1735552254106,-500.0,0.00013972,2]
[347180040,1735552254115,-500.0,0.00013972,2]
[347180041,1735552254125,-500.0,0.00013972,2]
[347180042,1735552254135,-862.91,0.00013972,2]
[347180043,1735552254145,-500.0,0.00013972,2]
[347180044,1735552254154,-506.38336305,0.00013972,2]
[347180045,1735552254164,-504.83694442,0.00013972,2]
[347180046,1735552254173,-500.0,0.00013972,2]
[347180047,1735552254182,-500.0,0.00013972,2]
[347180048,1735552254191,-502.67253356,0.00013972,2]
[347180049,1735552254201,-628.66,0.00013972,2]
[347180050,1735552254211,-504.57346482,0.00013972,2]
[347180051,1735552254221,-500.0,0.00013972,2]
[347180052,1735552254231,-201.610231,0.00013972,2]
[347180053,1735552254240,-503.18438945,0.00013972,2]
[347180054,1735552254250,-500.0,0.00013972,2]
[347180055,1735552254260,-500.0,0.00013972,2]
[347180056,1735552254270,-201.610231,0.00013972,2]
[347180057,1735552254288,-500.0,0.00013972,2]
[347180058,1735552254302,-780.48,0.00013972,2]
[347180059,1735552254312,-500.0,0.00013972,2]
[347180060,1735552254322,-505.2883164,0.00013972,2]
[347180061,1735552254332,-500.0,0.00013972,2]
[347180062,1735552254341,-500.0,0.00013972,2]
[347180063,1735552254351,-500.0,0.00013972,2]
[347180064,1735552254361,-193.10001496,0.00013972,2]
[347180065,1735552254370,-500.0,0.00013972,2]
[347180066,1735552254380,-915.62,0.00013972,2]
[347180067,1735552254389,-151.0,0.00013972,2]
[347180068,1735552254399,-721.79,0.00013972,2]
[347180069,1735552254408,-500.0,0.00013972,2]
[347180070,1735552254418,-500.0,0.00013972,2]
[347180071,1735552254427,-505.60512605,0.00013972,2]
[347180072,1735552254436,-500.0,0.00013972,2]
[347180073,1735552254446,-1192.09,0.00013972,2]
[347180074,1735552254456,-500.0,0.00013972,2]
[347180075,1735552254467,-503.95296245,0.00013972,2]
[347180076,1735552254477,-500.0,0.00013972,2]
[347180077,1735552254487,-689.56,0.00013972,2]
[347180078,1735552254496,-553.43,0.00013972,2]
[347180079,1735552254506,-505.21839857,0.00013972,2]
[347180080,1735552254516,-516.80912554,0.00013972,2]
[347180081,1735552254526,-637.06419149,0.00013972,2]
[347180082,1735552254536,-507.61889316,0.00013972,2]
[347180083,1735552254546,-500.0,0.00013972,2]
[347180084,1735552254556,-886.02,0.00013972,2]
[347180085,1735552254565,-151.0,0.00013972,2]
[347180086,1735552254636,-506.56240202,0.00013972,2]
[347180087,1735552254647,-500.0,0.00013972,2]
[347180088,1735552254657,-151.0,0.00013972,2]
[347180089,1735552254667,-500.0,0.00013972,2]
[347180090,1735552254677,-318.07897769,0.00013972,2]
[347180091,1735552254686,-503.33838278,0.00013972,2]
[347180092,1735552254696,-515.86221506,0.00013972,2]
[347180093,1735552254705,-509.13820576,0.00013972,2]
[347180094,1735552254714,-151.0,0.00013972,2]
[347180095,1735552254724,-500.0,0.00013972,2]
[347180096,1735552254734,-578.56170288,0.00013972,2]
[347180097,1735552254743,-713.46,0.00013972,2]
[347180098,1735552254753,-500.0,0.00013972,2]
[347180099,1735552254762,-500.0,0.00013972,2]
[347180100,1735552254771,-500.0,0.00013972,2]
[347180101,1735552254781,-151.0,0.00013972,2]
[347180102,1735552254790,-500.0,0.00013972,2]
[347180103,1735552254800,-151.0,0.00013972,2]
[347180104,1735552254809,-500.0,0.00013972,2]
[347180105,1735552254819,-500.0,0.00013972,2]
[347180106,1735552254828,-1300.12,0.00013972,2]
[347180107,1735552254837,-500.0,0.00013972,2]
[347180108,1735552254846,-646.68,0.00013972,2]
[347180109,1735552254855,-747.9,0.00013972,2]
[347180110,1735552254864,-1112.77,0.00013972,2]
[347180111,1735552254873,-2201.28,0.00013972,2]
[347180112,1735552254883,-500.0,0.00013972,2]
[347180113,1735552254893,-504.11715597,0.00013972,2]
[347180114,1735552254903,-536.13898786,0.00013972,2]
[347180115,1735552254912,-946.31,0.00013972,2]
[347180116,1735552254921,-1485.25,0.00013972,2]
[347180117,1735552254931,-500.0,0.00013972,2]
[347180118,1735552254941,-500.0,0.00013972,2]
[347180119,1735552254950,-500.0,0.00013972,2]
[347180120,1735552254959,-500.0,0.00013972,2]
[347180121,1735552254969,-417.53030994,0.00013972,2]
[347180122,1735552254978,-151.0,0.00013972,2]
[347180123,1735552254987,-316.145915,0.00013972,2]
[347180124,1735552254997,-500.0,0.00013972,2]
[347180125,1735552255006,-500.0,0.00013972,2]
[347180126,1735552255016,-500.0,0.00013972,2]
[347180127,1735552255026,-316.145915,0.00013972,2]
[347180128,1735552255035,-151.0,0.00013972,2]
[347180129,1735552255044,-500.0,0.00013972,2]
[347180130,1735552255054,-989.56,0.00013972,2]
[347180131,1735552255063,-1511.44,0.00013972,2]
[347180132,1735552255072,-510.98681656,0.00013972,2]
[347180133,1735552255081,-500.0,0.00013972,2]
[347180134,1735552255091,-514.52101932,0.00013972,2]
[347180135,1735552255100,-500.0,0.00013972,2]
[347180136,1735552255109,-500.0,0.00013972,2]
[347180137,1735552255119,-500.0,0.00013972,2]
[347180138,1735552255128,-1364.7,0.00013972,2]
[347180139,1735552255138,-500.0,0.00013972,2]
[347180140,1735552255148,-500.0,0.00013972,2]
[347180141,1735552255157,-507.64106103,0.00013972,2]
[347180142,1735552255167,-837.14,0.00013972,2]
[347180143,1735552255176,-500.0,0.00013972,2]
[347180144,1735552255185,-1333.45,0.00013972,2]
[347180145,1735552255194,-208.58916753,0.00013972,2]
[347180146,1735552255204,-500.0,0.00013972,2]
[347180147,1735552255214,-1811.28,0.00013972,2]
[347180148,1735552255225,-500.0,0.00013972,2]
[347180149,1735552255234,-591.94,0.00013972,2]
[347180150,1735552255245,-500.0,0.00013972,2]
[347180151,1735552255254,-500.0,0.00013972,2]
[347180152,1735552255263,-1066.36,0.00013972,2]
[347180153,1735552255273,-1531.21,0.00013972,2]
[347180154,1735552255283,-151.0,0.00013972,2]
[347180155,1735552255292,-500.0,0.00013972,2]
[347180156,1735552255301,-1130.62,0.00013972,2]
[347180157,1735552255310,-500.0,0.00013972,2]
[347180158,1735552255319,-2000.82,0.00013972,2]
[347180159,1735552255329,-500.0,0.00013972,2]
[347180160,1735552255339,-500.0,0.00013972,2]
[347180161,1735552255348,-500.0,0.00013972,2]
[347180162,1735552255358,-500.0,0.00013972,2]
[347180163,1735552255367,-500.0,0.00013972,2]
[347180164,1735552255377,-1004.83,0.00013972,2]
[347180165,1735552255386,-521.17,0.00013972,2]
[347180166,1735552255396,-500.0,0.00013972,2]
[347180167,1735552255406,-1434.78,0.00013972,2]
[347180168,1735552255415,-500.0,0.00013972,2]
[347180169,1735552255424,-1190.535245,0.00013972,2]
[347180170,1735552255434,-1158.3,0.00013972,2]
[347180171,1735552255444,-984.97,0.00013972,2]
[347180172,1735552255453,-534.13,0.00013972,2]
[347180173,1735552255462,-1190.535245,0.00013972,2]
[347180174,1735552255472,-500.0,0.00013972,2]
[347180175,1735552255482,-500.0,0.00013972,2]
[347180176,1735552255492,-1272.2,0.00013972,2]
[347180177,1735552255501,-612.71,0.00013972,2]
[347180178,1735552255511,-500.0,0.00013972,2]
[347180179,1735552255520,-500.0,0.00013972,2]
[347180180,1735552255529,-1572.25,0.00013972,2]
[347180181,1735552255539,-1086.14,0.00013972,2]
[347180182,1735552255549,-500.0,0.00013972,2]
[347180183,1735552255558,-500.0,0.00013972,2]
[347180184,1735552255568,-500.0,0.00013972,2]
[347180185,1735552255578,-151.0,0.00013972,2]
[347180186,1735552255587,-500.0,0.00013972,2]
[347180187,1735552255596,-730.78,0.00013972,2]
[347180188,1735552255605,-1004.19,0.00013972,2]
[347180189,1735552255615,-500.0,0.00013972,2]
[347180190,1735552255624,-1497.73,0.00013972,2]
[347180191,1735552255634,-789.13,0.00013972,2]
[347180192,1735552255643,-854.9,0.00013972,2]
[347180193,1735552255653,-500.0,0.00013972,2]
[347180194,1735552255663,-500.0,0.00013972,2]
[347180195,1735552255672,-1160.55,0.00013972,2]
[347180196,1735552255682,-796.81,0.00013972,2]
[347180197,1735552255694,-1287.71,0.00013972,2]
[347180198,1735552255704,-1807.47,0.00013972,2]
[347180199,1735552255714,-500.0,0.00013972,2]
[347180200,1735552255723,-500.0,0.00013972,2]
[347180201,1735552255733,-1522.7,0.00013972,2]
[347180202,1735552255743,-500.0,0.00013972,2]
[347180203,1735552255753,-500.0,0.00013972,2]
[347180204,1735552255763,-500.0,0.00013972,2]
[347180205,1735552255775,-573.13,0.00013972,2]
[347180206,1735552255784,-1311.28,0.00013972,2]
[347180207,1735552255794,-1817.31,0.00013972,2]
[347180208,1735552255804,-500.0,0.00013972,2]
[347180209,1735552255814,-500.0,0.00013972,2]
[347180210,1735552255824,-189.24734,0.00013972,2]
[347180211,1735552255834,-500.0,0.00013972,2]
[347180212,1735552255844,-900.6,0.00013972,2]
[347180213,1735552255853,-826.18,0.00013972,2]
[347180214,1735552255863,-1911.42,0.00013972,2]
[347180215,1735552255873,-189.24734,0.00013972,2]
[347180216,1735552255883,-501.86209126,0.00013972,2]
[347180217,1735552255893,-500.0,0.00013972,2]
[347180218,1735552255906,-500.0,0.00013972,2]
[347180219,1735552255916,-500.0,0.00013972,2]
[347180220,1735552255927,-150.07274938,0.00013972,2]
[347180221,1735552255937,-916.64,0.00013972,2]
[347180222,1735552255947,-500.0,0.00013972,2]
[347180223,1735552255957,-517.7490443,0.00013972,2]
[347180224,1735552255967,-500.0,0.00013972,2]
[347180225,1735552255978,-500.0,0.00013972,2]
[347180226,1735552255987,-500.0,0.00013972,2]
[347180227,1735552255997,-500.0,0.00013972,2]
[347180228,1735552256008,-542.05,0.00013972,2]
[347180229,1735552256018,-861.59,0.00013972,2]
[347180230,1735552256028,-1050.99,0.00013972,2]
[347180231,1735552256038,-500.0,0.00013972,2]
[347180232,1735552256047,-500.0,0.00013972,2]
[347180233,1735552256057,-196.128196,0.00013972,2]
[347180234,1735552256067,-535.8,0.00013972,2]
[347180235,1735552256077,-1360.37,0.00013972,2]
[347180236,1735552256086,-500.0,0.00013972,2]
[347180237,1735552256096,-500.0,0.00013972,2]
[347180238,1735552256106,-505.21,0.00013972,2]
[347180239,1735552256115,-521.33,0.00013972,2]
[347180240,1735552256125,-196.128196,0.00013972,2]
[347180241,1735552256135,-516.92,0.00013972,2]
[347180242,1735552256144,-500.0,0.00013972,2]
[347180243,1735552256155,-934.82,0.00013972,2]
[347180244,1735552256166,-505.26781188,0.00013972,2]
[347180245,1735552256176,-500.0,0.00013972,2]
[347180246,1735552256186,-537.37,0.00013972,2]
[347180247,1735552256195,-500.0,0.00013972,2]
[347180248,1735552256205,-544.45,0.00013972,2]
[347180249,1735552256214,-1895.92,0.00013972,2]
[347180250,1735552256225,-1468.91,0.00013972,2]
[347180251,1735552256235,-508.52433425,0.00013972,2]
[347180252,1735552256244,-556.28,0.00013972,2]
[347180253,1735552256254,-178.806333,0.00013972,2]
[347180254,1735552256264,-500.0,0.00013972,2]
[347180255,1735552256273,-500.0,0.00013972,2]
[347180256,1735552256285,-500.0,0.00013972,2]
[347180257,1735552256295,-1255.58,0.00013972,2]
[347180258,1735552256304,-178.806333,0.00013972,2]
[347180259,1735552256313,-151.0,0.00013972,2]
[347180260,1735552256323,-500.0,0.00013972,2]
[347180261,1735552256332,-889.87,0.00013972,2]
[347180262,1735552256342,-169.867104,0.00013972,2]
[347180263,1735552256351,-500.0,0.00013972,2]
[347180264,1735552256362,-1841.421263,0.00013972,2]
[347180265,1735552256371,-759.42,0.00013972,2]
[347180266,1735552256381,-219.710269,0.00013972,2]
[347180267,1735552256390,-169.867104,0.00013972,2]
[347180268,1735552256401,-1721.61,0.00013972,2]
[347180269,1735552256411,-500.0,0.00013972,2]
[347180270,1735552256420,-1841.421263,0.00013972,2]
[347180271,1735552256429,-500.0,0.00013972,2]
[347180272,1735552256439,-219.710269,0.00013972,2]
[347180273,1735552256450,-1046.84,0.00013972,2]
[347180274,1735552256459,-830.8,0.00013972,2]
[347180275,1735552256469,-151.0,0.00013972,2]
[347180276,1735552256478,-1689.62,0.00013972,2]
[347180277,1735552256488,-500.0,0.00013972,2]
[347180278,1735552256497,-500.0,0.00013972,2]
[347180279,1735552256506,-151.0,0.00013972,2]
[347180280,1735552256516,-500.0,0.00013972,2]
[347180281,1735552256525,-500.0,0.00013972,2]
[347180282,1735552256535,-500.0,0.00013972,2]
[347180283,1735552256544,-500.0,0.00013972,2]
[347180284,1735552256554,-846.26,0.00013972,2]
[347180285,1735552256563,-500.0,0.00013972,2]
[347180286,1735552256574,-500.0,0.00013972,2]
[347180287,1735552256584,-500.0,0.00013972,2]
[347180288,1735552256594,-984.16,0.00013972,2]
[347180289,1735552256604,-1157.2,0.00013972,2]
[347180290,1735552256613,-671.45,0.00013972,2]
[347180291,1735552256623,-500.0,0.00013972,2]
[347180292,1735552256632,-953.22,0.00013972,2]
[347180293,1735552256642,-616.88,0.00013972,2]
[347180294,1735552256652,-516.99828635,0.00013972,2]
[347180295,1735552256662,-500.0,0.00013972,2]